bitfinex-derivatives/quotes_SOLF0:USTF0_20250310
["timestamp","ask_amount","ask_price","bid_price","bid_amount"]
[1741634063223,68.24570295,117.65,117.57,4.0064]
[1741634063524,76.75230295,117.63,117.55,8.2808]
[1741634063724,422.22570295,117.65,117.55,8.2808]
[1741634063725,353.98,117.65,117.55,8.2808]
[1741634063925,68.24570295,117.64,117.55,8.2808]
[1741634064119,68.24570295,117.62,117.55,8.2808]
[1741634064421,0.05469907,117.61,117.58,0.06053345]
[1741634066432,68.24570295,117.6,117.58,0.06053345]
[1741634066720,68.24570295,117.6,117.5,4.1417]
[1741634066925,8.5117,117.56,117.5,4.1417]
[1741634067429,8.5123,117.55,117.5,4.1417]
[1741634067631,68.24570295,117.58,117.5,4.1417]
[1741634067820,262.24570295,117.64,117.52,68.24570295]
[1741634068131,280.9,117.65,117.58,8.5092]
[1741634068431,4.2194,117.68,117.58,141.14570295]
[1741634068739,72.46510295,117.68,117.59,8.4328]
[1741634069127,0.0548739,117.65,117.62,0.0544355]
[1741634069528,8.5061,117.63,117.59,12.6888]
[1741634069733,0.0548739,117.65,117.62,0.05959382]
[1741634069924,68.24570295,117.68,117.62,0.05959382]
[1741634070118,0.0548739,117.65,117.62,0.05959382]
[1741634071330,68.30057685,117.65,117.62,0.05959382]
[1741634071636,68.30057685,117.65,117.55,4.0086]
[1741634071934,4.412,117.67,117.58,8.5095]
[1741634072131,8.5058,117.64,117.56,68.24570295]
[1741634072325,615.98570295,117.7,117.58,68.24570295]
[1741634072529,280.88,117.7,117.6,68.24570295]
[1741634072736,262.24570295,117.76,117.65,68.24570295]
[1741634072933,0.05707572,117.66,117.65,68.24570295]
[1741634073237,262.24570295,117.76,117.65,141.08570295]
[1741634073636,8.5003,117.72,117.65,141.08570295]
[1741634073829,262.24570295,117.76,117.65,72.84]
[1741634074034,262.24570295,117.76,117.61,8.0497]
[1741634074035,194.0,117.75,117.61,8.0497]
[1741634074238,8.5015,117.7,117.69,0.00611157]
[1741634074433,8.5015,117.7,117.59,4.3484]
[1741634074434,194.0,117.69,117.59,4.3484]
[1741634074642,68.24570295,117.66,117.59,4.3484]
[1741634074838,68.24570295,117.68,117.59,4.3484]
[1741634075038,194.0,117.69,117.59,4.3484]
[1741634075242,68.24570295,117.68,117.59,4.3484]
[1741634075443,68.24570295,117.66,117.59,4.3484]
[1741634075640,0.06329287,117.65,117.62,0.05972093]
[1741634076740,8.4999,117.72,117.62,68.30542388]
[1741634077039,266.8,117.73,117.62,68.24570295]
[1741634077433,68.24570295,117.74,117.64,68.24570295]
[1741634077634,280.72,117.75,117.66,68.24570295]
[1741634077840,289.2177,117.75,117.67,4.3266]
[1741634078036,0.05532231,117.72,117.69,0.0604249]
[1741634079744,0.05532231,117.72,117.69,8.5619249]
[1741634079943,0.05532231,117.72,117.69,0.0604249]
[1741634081246,8.5011,117.7,117.69,0.0604249]
[1741634081635,68.30102526,117.72,117.62,76.7723]
[1741634081841,68.24570295,117.7,117.62,76.7723]
[1741634082142,194.0,117.71,117.62,4.0323]
[1741634082343,8.4988,117.74,117.64,68.24570295]
[1741634082543,68.24570295,117.76,117.66,68.24570295]
[1741634082745,68.24570295,117.76,117.65,4.1425]
[1741634082945,0.0584098,117.72,117.7,0.05512242]
[1741634083349,8.5003,117.71,117.7,0.05512242]
[1741634084038,8.5031,117.68,117.62,72.27800295]
[1741634084347,8.5031,117.68,117.62,4.0323]
[1741634084547,68.24570295,117.72,117.62,12.5387]
[1741634084743,280.6,117.71,117.62,12.5387]
[1741634084946,68.24570295,117.7,117.62,4.0323]
[1741634085142,8.5041,117.66,117.65,0.05700268]
[1741634085546,0.06020337,117.68,117.65,0.05700268]
[1741634085851,8.5039,117.66,117.65,0.05700268]
[1741634086249,68.30590632,117.68,117.58,4.1425]
[1741634086450,68.24570295,117.66,117.58,4.1425]
[1741634086645,68.24570295,117.64,117.55,81.0198]
[1741634086847,8.5079,117.61,117.55,85.4326]
[1741634087146,68.24570295,117.64,117.55,85.4326]
[1741634087543,0.05982336,117.61,117.58,0.05829433]
[1741634087948,8.5117,117.56,117.51,211.24697811]
[1741634088252,68.24570295,117.6,117.51,219.76177811]
[1741634088454,8.5088,117.6,117.52,68.24570295]
[1741634088643,68.24570295,117.62,117.52,68.24570295]
[1741634088846,68.24570295,117.6,117.51,8.5146]
[1741634089139,68.31021308,117.58,117.49,12.6646]
[1741634089345,68.31021308,117.58,117.54,0.06352326]
[1741634089547,68.24570295,117.58,117.54,0.06352326]
[1741634089747,0.06510805,117.57,117.54,0.06352326]
[1741634091144,8.5141,117.52,117.49,8.4232]
[1741634091350,8.5141,117.52,117.46,68.24570295]
[1741634091351,68.24570295,117.56,117.44,140.90570295]
[1741634091549,68.24570295,117.56,117.43,12.8245]
[1741634091550,68.24570295,117.54,117.43,12.8245]
[1741634091745,8.515,117.51,117.43,12.8245]
[1741634091948,140.90570295,117.54,117.43,12.8245]
[1741634092151,68.24570295,117.52,117.43,12.8245]
[1741634092357,0.06418065,117.5,117.47,0.0602577]
[1741634092655,0.06418065,117.5,117.47,8.5778577]
[1741634092950,0.06418065,117.5,117.47,0.0602577]
[1741634095250,140.9698836,117.5,117.32,471.76]
[1741634095456,68.24570295,117.48,117.38,12.8257]
[1741634095654,68.24570295,117.52,117.41,68.24570295]
[1741634095951,68.24570295,117.52,117.41,140.90570295]
[1741634096155,68.24570295,117.5,117.41,72.66]
[1741634096353,8.5193,117.45,117.41,81.1819]
[1741634096551,0.05882299,117.47,117.44,0.06135687]
[1741634096857,8.5185,117.46,117.44,0.06135687]
[1741634097260,0.0651273,117.47,117.44,0.06135687]
[1741634099058,8.5831273,117.47,117.44,0.06135687]
[1741634099258,0.0651273,117.47,117.44,0.06135687]
[1741634099656,8.5192,117.45,117.44,0.06135687]
[1741634100253,8.5192,117.45,117.38,85.4857]
[1741634100254,68.24570295,117.46,117.38,4.2846]
[1741634100661,349.08570295,117.48,117.38,4.2846]
[1741634100861,349.08570295,117.48,117.39,4.2755]
[1741634101054,349.08570295,117.48,117.38,4.2846]
[1741634101055,68.24570295,117.44,117.38,4.2846]
[1741634101357,68.24570295,117.46,117.38,76.9446]
[1741634101658,280.84,117.48,117.41,8.5221]
[1741634101659,0.05575295,117.42,117.41,8.5221]
[1741634101855,349.08570295,117.48,117.38,4.2846]
[1741634102055,68.24570295,117.45,117.38,4.2846]
[1741634102260,349.08570295,117.48,117.38,4.2846]
[1741634102261,68.24570295,117.47,117.38,4.2846]
[1741634102560,68.24570295,117.45,117.38,4.2846]
[1741634102759,68.24570295,117.43,117.36,4.2755]
[1741634102955,68.24570295,117.39,117.27,280.92]
[1741634103155,68.24570295,117.41,117.37,8.5246]
[1741634103156,280.92,117.41,117.37,8.5246]
[1741634103360,8.5236,117.39,117.31,68.24570295]
[1741634103556,280.92,117.41,117.31,68.24570295]
[1741634103756,349.16570295,117.41,117.32,8.5282]
[1741634103962,68.24570295,117.39,117.29,68.24570295]
[1741634104158,0.05945896,117.38,117.35,0.05460315]
[1741634104366,8.5232,117.4,117.37,8.525]
[1741634104660,0.06535758,117.38,117.31,68.24570295]
[1741634104864,8.58955758,117.38,117.37,0.0536425]
[1741634105064,72.64,117.4,117.33,0.05975404]
[1741634105262,0.06010739,117.39,117.28,85.5767]
[1741634105463,280.92,117.41,117.36,8.5251]
[1741634105664,0.06495931,117.35,117.32,68.24570295]
[1741634105863,349.16570295,117.41,117.29,68.24570295]
[1741634106052,7.789e-05,117.35,117.32,0.05781545]
[1741634106259,280.92,117.41,117.31,68.24570295]
[1741634106455,4.018,117.46,117.35,68.24570295]
[1741634106765,4.018,117.46,117.36,80.9467]
[1741634106969,68.24570295,117.44,117.36,80.9467]
[1741634107168,0.05449577,117.42,117.4,0.063027]
[1741634107462,349.22570295,117.51,117.44,8.5193]
[1741634107766,68.24570295,117.45,117.37,76.7293]
[1741634107965,68.24570295,117.45,117.37,4.0893]
[1741634108166,68.24570295,117.43,117.36,8.3067]
[1741634108464,68.24570295,117.43,117.36,4.131]
[1741634108660,0.0649222,117.41,117.38,0.06539939]
[1741634109864,281.06,117.49,117.39,140.86570295]
[1741634110167,349.30570295,117.49,117.4,8.2706]
[1741634110468,421.94570295,117.54,117.43,68.24570295]
[1741634110662,1.7019828,117.51,117.43,68.24570295]
[1741634110862,1.7019828,117.51,117.44,72.62]
[1741634111060,1.7019828,117.51,117.46,0.05400023]
[1741634111061,1.418e-05,117.48,117.46,0.05400023]
[1741634111258,63.82459411,117.6,117.47,68.24570295]
[1741634111461,55.31619411,117.6,117.51,68.24570295]
[1741634111665,55.31619411,117.6,117.53,68.24570295]
[1741634111864,42.27149411,117.6,117.55,68.24570295]
[1741634112171,364.21883989,117.66,117.55,68.24570295]
[1741634112172,281.08,117.67,117.57,68.24570295]
[1741634112361,281.08,117.67,117.57,140.86570295]
[1741634112558,281.08,117.67,117.56,4.4083]
[1741634112559,68.24570295,117.64,117.56,4.4083]
[1741634112759,68.24570295,117.62,117.54,3.9986]
[1741634113465,0.06257881,117.59,117.57,0.06273321]
[1741634114265,547.64,117.67,117.57,68.30843616]
[1741634114469,353.64,117.67,117.6,8.5083]
[1741634114671,68.24570295,117.66,117.55,4.183]
[1741634115059,353.64,117.67,117.56,4.4096]
[1741634115060,68.24570295,117.64,117.56,4.4096]
[1741634115565,0.06077862,117.61,117.59,0.06057667]
[1741634116365,0.06077862,117.61,117.54,3.9986]
[1741634116565,68.24570295,117.6,117.5,140.76570295]
[1741634116767,72.52,117.61,117.5,140.76570295]
[1741634116974,68.24570295,117.6,117.5,140.76570295]
[1741634117169,72.52,117.61,117.5,140.76570295]
[1741634117364,72.52,117.61,117.52,68.24570295]
[1741634117566,0.0595348,117.57,117.54,0.05371773]
[1741634118769,334.74570295,117.56,117.44,68.24570295]
[1741634118968,68.24570295,117.53,117.42,68.24570295]
[1741634119362,68.24570295,117.55,117.44,68.24570295]
[1741634119574,68.24570295,117.55,117.45,4.3325]
[1741634119875,0.05571814,117.51,117.49,0.05740347]
[1741634120261,0.0591257,117.51,117.49,0.05740347]
[1741634120462,143.34482865,117.51,117.37,4.067]
[1741634120668,68.24570295,117.47,117.38,8.7771]
[1741634120861,72.48,117.51,117.38,8.7771]
[1741634120862,68.24570295,117.49,117.38,8.7771]
[1741634121272,140.72570295,117.51,117.39,68.24570295]
[1741634121468,0.06075991,117.46,117.44,0.05965961]
[1741634121775,280.82,117.53,117.45,68.24570295]
[1741634122068,280.82,117.53,117.46,4.3516]
[1741634122273,280.82,117.53,117.48,8.5168]
[1741634122572,280.82,117.53,117.46,4.3516]
[1741634122866,68.30448645,117.51,117.41,72.48]
[1741634123069,72.48,117.52,117.41,140.72570295]
[1741634123271,80.9941,117.52,117.46,8.5178]
[1741634123567,72.48,117.52,117.47,1.70256235]
[1741634123772,8.5182,117.47,117.4,17.0193]
[1741634123973,68.24570295,117.47,117.35,68.24570295]
[1741634124169,0.06177186,117.45,117.42,0.05578672]
[1741634124366,68.24570295,117.47,117.42,0.05578672]
[1741634124562,0.06282533,117.45,117.43,0.05441616]
[1741634124869,68.24570295,117.48,117.36,72.46]
[1741634125070,0.05664802,117.45,117.43,0.05489754]
[1741634125471,8.5199,117.44,117.36,72.46]
[1741634125768,280.92,117.46,117.37,68.24570295]
[1741634126173,349.25270295,117.52,117.41,68.24570295]
[1741634126472,68.24570295,117.5,117.37,68.24570295]
[1741634126677,0.06471454,117.48,117.45,0.0618968]
[1741634126969,474.92,117.51,117.41,68.24570295]
[1741634127169,0.05685902,117.48,117.45,0.05414092]
[1741634127969,0.05685902,117.48,117.45,8.57294092]
[1741634128367,0.05685902,117.48,117.45,0.05414092]
[1741634129176,68.30256197,117.48,117.45,0.05414092]
[1741634129372,70.86256197,117.48,117.38,4.3044]
[1741634129580,68.24570295,117.46,117.35,76.54620295]
[1741634129776,68.24570295,117.46,117.36,4.3238]
[1741634130277,266.41730295,117.48,117.37,68.24570295]
[1741634130478,194.0,117.48,117.4,0.05527769]
[1741634130671,194.0,117.48,117.39,68.24570295]
[1741634130868,194.0,117.48,117.37,68.24570295]
[1741634131480,280.94,117.49,117.37,68.24570295]
[1741634131779,0.06343998,117.44,117.41,0.05976839]
[1741634131977,0.06343998,117.44,117.39,72.44]
[1741634132178,0.06343998,117.44,117.43,8.5206]
[1741634132377,0.06343998,117.44,117.41,0.05732057]
[1741634133281,8.58363998,117.44,117.41,0.05732057]
[1741634133681,0.06343998,117.44,117.41,0.05732057]
[1741634135879,280.94,117.49,117.41,68.30302352]
[1741634136080,194.1511,117.52,117.42,8.3617]
[1741634136279,194.0,117.52,117.43,68.24570295]
[1741634136782,349.26570295,117.54,117.42,12.4641]
[1741634136983,68.24570295,117.52,117.42,12.4641]
[1741634137182,0.05972581,117.49,117.46,0.06518272]
[1741634138685,4.0925,117.58,117.47,68.24570295]
[1741634138987,45.36573561,117.61,117.56,8.5105]
[1741634139385,45.36573561,117.61,117.52,72.38]
[1741634139386,45.36573561,117.61,117.52,81.0056]
[1741634139585,45.36573561,117.61,117.53,68.24570295]
[1741634139890,45.36573561,117.61,117.55,0.0565596]
[1741634139891,0.0536881,117.58,117.55,0.0565596]
[1741634140584,11.3414339,117.68,117.57,68.24570295]
[1741634140887,11.3414339,117.68,117.61,68.24570295]
[1741634141080,11.3414339,117.68,117.63,68.24570295]
[1741634141285,136.09720686,117.7,117.65,68.24570295]
[1741634141686,0.05889682,117.68,117.67,68.24570295]
[1741634141883,96.41346872,117.69,117.67,68.24570295]
[1741634142087,96.41346872,117.69,117.66,8.56427223]
[1741634142283,76.48046872,117.69,117.66,0.06097223]
[1741634143102,76.54279181,117.69,117.66,0.06097223]
[1741634143288,68.24570295,117.68,117.56,72.28]
[1741634143490,68.24570295,117.66,117.56,72.28]
[1741634143688,68.24570295,117.64,117.55,8.5114]
[1741634143990,68.24570295,117.66,117.55,68.24570295]
[1741634144289,4.2294,117.67,117.57,68.24570295]
[1741634144487,4.0193,117.7,117.61,68.24570295]
[1741634144691,140.52570295,117.73,117.63,68.24570295]
[1741634144988,68.24570295,117.71,117.61,68.24570295]
[1741634145194,68.24570295,117.69,117.59,68.24570295]
[1741634145584,68.24570295,117.73,117.63,68.24570295]
[1741634145783,280.78,117.74,117.65,68.24570295]
[1741634146187,8.5483,117.75,117.65,68.24570295]
[1741634146683,4.2294,117.75,117.67,68.24570295]
[1741634147089,0.04241078,117.71,117.69,0.063834]
[1741634147285,352.92,117.79,117.69,0.063834]
[1741634147502,284.9897,117.79,117.69,68.30953695]
[1741634147788,421.14570295,117.84,117.71,68.24570295]
[1741634147993,4.3097,117.83,117.71,68.24570295]
[1741634148194,68.24570295,117.82,117.72,8.4994]
[1741634148390,68.24570295,117.82,117.71,68.24570295]
[1741634148586,68.24570295,117.82,117.76,0.05789826]
[1741634148793,4.3097,117.83,117.76,0.05789826]
[1741634149098,72.55540295,117.83,117.76,0.05789826]
[1741634149289,68.24570295,117.81,117.76,0.05789826]
[1741634149493,194.0,117.82,117.76,0.05789826]
[1741634149797,202.4926,117.82,117.76,8.55409826]
[1741634150095,68.24570295,117.81,117.76,0.05789826]
[1741634150284,8.4944,117.8,117.76,0.05789826]
[1741634150485,194.0,117.82,117.76,0.05789826]
[1741634151402,202.4926,117.82,117.76,0.05789826]
[1741634151690,194.0,117.82,117.76,0.05789826]
[1741634151894,4.3097,117.83,117.76,0.05789826]
[1741634152398,76.73470295,117.87,117.81,8.4926]
[1741634152597,81.04070295,117.87,117.81,8.4926]
[1741634152910,4.306,117.87,117.78,72.12]
[1741634153093,4.306,117.87,117.83,0.0642183]
[1741634153491,4.306,117.92,117.83,72.1842183]
[1741634153890,68.24570295,117.91,117.83,72.12]
[1741634154097,68.24570295,117.89,117.86,0.06028839]
[1741634154296,68.24570295,117.89,117.79,72.12]
[1741634154491,68.24570295,117.89,117.84,8.4903]
[1741634154700,72.12,117.9,117.79,140.36570295]
[1741634154995,8.4881,117.88,117.82,8.4917]
[1741634155293,262.24570295,117.91,117.81,68.24570295]
[1741634155486,4.306,117.92,117.84,0.06005194]
[1741634155693,4.306,117.92,117.85,68.24570295]
[1741634155892,4.306,117.92,117.84,72.08]
[1741634156493,68.24570295,117.91,117.79,140.32570295]
[1741634156699,4.306,117.92,117.79,140.32570295]
[1741634156887,68.24570295,117.91,117.84,0.05589858]
[1741634157107,8.4872,117.9,117.85,8.4896]
[1741634157295,68.24570295,117.91,117.81,68.24570295]
[1741634157598,68.24570295,117.91,117.86,0.05887545]
[1741634158096,8.4888,117.87,117.86,0.05887545]
[1741634158297,68.24570295,117.89,117.79,140.32570295]
[1741634158599,8.4895,117.87,117.82,8.492]
[1741634158987,68.24570295,117.89,117.79,140.32570295]
[1741634159189,0.06293422,117.85,117.83,8.54884408]
[1741634159388,0.06293422,117.85,117.83,0.05764408]
[1741634160497,0.06293422,117.85,117.75,72.62390295]
[1741634160700,140.28570295,117.87,117.78,8.4953]
[1741634160701,8.4919,117.83,117.78,8.4953]
[1741634160999,348.44570295,117.85,117.74,72.04]
[1741634161201,8.4913,117.84,117.79,8.494]
[1741634161400,280.2,117.85,117.74,72.04]
[1741634161708,194.0,117.86,117.79,68.24570295]
[1741634161998,280.2,117.9,117.79,68.24570295]
[1741634161999,68.24570295,117.89,117.79,140.26570295]
[1741634162198,288.6869,117.9,117.86,8.4895]
[1741634162407,280.2,117.9,117.8,68.24570295]
[1741634162591,4.4018,117.92,117.8,68.24570295]
[1741634162796,8.4852,117.92,117.82,68.24570295]
[1741634162996,194.0,117.93,117.81,4.3115]
[1741634162997,280.2,117.95,117.86,68.24570295]
[1741634163200,3.19e-06,117.87,117.86,68.24570295]
[1741634163393,8.4868,117.9,117.85,72.02]
[1741634163593,420.46570295,117.95,117.82,4.0877]
[1741634163806,68.24570295,117.89,117.81,76.3315]
[1741634163999,68.24570295,117.87,117.77,4.0877]
[1741634164201,68.24570295,117.85,117.76,72.02]
[1741634164403,68.24570295,117.87,117.81,0.05766801]
[1741634164605,288.8303,117.88,117.81,0.05766801]
[1741634164804,542.38570295,117.93,117.81,140.30337096]
[1741634165001,194.0,117.93,117.84,68.24570295]
[1741634165304,68.24570295,117.91,117.82,12.7558]
[1741634165498,68.24570295,117.89,117.78,4.1166]
[1741634165797,4.3357,117.91,117.81,68.24570295]
[1741634165998,4.3357,117.91,117.83,68.24570295]
[1741634166199,72.57140295,117.95,117.84,4.1166]
[1741634166400,68.24570295,117.93,117.84,4.1166]
[1741634166600,0.06418229,117.91,117.88,0.0654642]
[1741634167104,68.30988524,117.91,117.8,4.1166]
[1741634167605,280.1,117.91,117.8,4.1166]
[1741634167804,348.34570295,117.91,117.8,4.1166]
[1741634167999,280.1,117.91,117.86,8.4891]
[1741634168200,0.06294241,117.87,117.84,0.06196173]
[1741634168709,0.05396114,117.87,117.84,0.05742384]
[1741634169201,68.29966409,117.87,117.76,68.24570295]
[1741634169401,68.24570295,117.85,117.74,4.2162]
[1741634169797,4.4163,117.87,117.77,68.24570295]
[1741634170003,12.9051,117.87,117.79,68.24570295]
[1741634170304,4.4163,117.87,117.78,68.24570295]
[1741634170495,0.05814671,117.84,117.82,0.05908134]
[1741634171100,8.4917,117.83,117.82,0.05908134]
[1741634171300,0.05814671,117.84,117.82,0.05908134]
[1741634171699,0.05814671,117.84,117.77,68.24570295]
[1741634171895,68.24570295,117.86,117.75,71.96]
[1741634172100,68.24570295,117.86,117.76,1.69836956]
[1741634172507,68.24570295,117.86,117.75,71.96]
[1741634172702,8.4898,117.86,117.76,68.24570295]
[1741634173008,4.0166,117.88,117.8,68.24570295]
[1741634173204,4.0166,117.88,117.8,140.20570295]
[1741634173701,4.3144,117.92,117.82,68.24570295]
[1741634173902,1.69606512,117.92,117.84,68.24570295]
[1741634174311,8.94e-06,117.88,117.87,8.4888]
[1741634174607,1.69606512,117.92,117.86,0.06031929]
[1741634175611,0.05449119,117.9,117.86,0.06031929]
[1741634175909,9.119e-05,117.9,117.89,8.4874]
[1741634176208,68.24570295,118.1,117.9,68.24570295]
[1741634176410,8.476,118.05,118.0,8.4789]
[1741634176803,4.0932,118.07,117.97,71.94]
[1741634177108,0.05417108,118.03,118.01,0.06027864]
[1741634177307,4.06817108,118.03,117.93,140.18570295]
[1741634177503,68.24570295,118.02,117.91,68.24570295]
[1741634177711,68.24570295,117.97,117.87,72.52840295]
[1741634178011,68.24570295,117.97,117.86,8.4894]
[1741634178012,68.24570295,117.95,117.86,8.4894]
[1741634178207,68.24570295,117.95,117.84,71.94]
[1741634178208,68.24570295,117.93,117.84,71.94]
[1741634178400,0.06290104,117.92,117.89,0.05852163]
[1741634178603,68.30860399,117.92,117.82,4.3391]
[1741634179010,68.24570295,117.92,117.84,8.4908]
[1741634179210,68.24570295,117.92,117.82,4.3391]
[1741634179211,71.92,117.92,117.83,68.24570295]
[1741634179414,12.3397,117.96,117.87,68.24570295]
[1741634179703,1.47604606,118.04,117.95,68.24570295]
[1741634179902,198.2445,118.07,117.97,68.24570295]
[1741634180104,206.7194,118.07,118.01,8.4787]
[1741634180300,4.2445,118.07,117.99,68.24570295]
[1741634180597,284.2896,118.1,118.04,8.4763]
[1741634180804,284.2896,118.1,118.01,68.30751939]
[1741634181004,284.2896,118.1,118.01,68.24570295]
[1741634181201,284.2896,118.1,118.04,8.476]
[1741634181414,4.2445,118.12,117.98,71.92]
[1741634181615,0.0590927,118.08,118.06,0.05961997]
[1741634182004,0.0590927,118.08,118.01,68.24570295]
[1741634182310,4.2445,118.12,118.05,68.24570295]
[1741634182506,4.1098,118.16,118.06,71.88]
[1741634183222,0.05838649,118.12,118.1,0.05504199]
[1741634183405,0.05838649,118.12,118.11,8.4715]
[1741634183610,89.28575857,118.25,118.17,68.24570295]
[1741634183922,27.06018419,118.25,118.24,8.4622]
[1741634184106,76.54745857,118.26,118.24,71.88]
[1741634184413,283.53584764,118.29,118.24,71.88]
[1741634184414,241.14954764,118.29,118.25,135.1214212]
[1741634184606,567.07169528,118.35,118.25,135.1214212]
[1741634184607,561.99169528,118.35,118.28,135.1214212]
[1741634184808,514.64169528,118.37,118.34,67.5607106]
[1741634185006,680.48603434,118.5,118.35,351.54]
[1741634185202,680.48603434,118.5,118.36,139.3607106]
[1741634185404,695.72612754,118.5,118.36,139.3607106]
[1741634185608,42.27,118.48,118.44,67.5607106]
[1741634185815,42.27,118.48,118.45,71.8]
[1741634186008,680.48603434,118.5,118.45,71.8]
[1741634186411,0.06165738,118.49,118.46,0.05974384]
[1741634186613,0.06165738,118.49,118.47,67.5607106]
[1741634186807,0.06165738,118.49,118.46,0.05974384]
[1741634187009,57.57175058,118.49,118.46,0.05974384]
[1741634187310,0.06165738,118.49,118.46,0.05974384]
[1741634187502,0.06165738,118.49,118.48,67.5607106]
[1741634187812,680.48603434,118.5,118.48,67.5607106]
[1741634188027,217.98390062,118.5,118.48,67.5607106]
[1741634188219,217.98390062,118.5,118.49,76.0051106]
[1741634188220,98.82695632,118.5,118.49,76.0051106]
[1741634188514,4.0836,118.64,118.49,258.5607106]
[1741634188714,42.27,118.6,118.54,67.5607106]
[1741634188911,42.27,118.54,118.48,67.5607106]
[1741634189108,279.32,118.59,118.46,71.72]
[1741634189109,42.27,118.52,118.46,71.72]
[1741634189309,42.27,118.51,118.5,0.0579891]
[1741634189508,294.5600932,118.52,118.42,139.2807106]
[1741634189711,42.27,118.48,118.42,71.72]
[1741634190017,42.27,118.43,118.36,67.5607106]
[1741634190413,15.2400932,118.43,118.36,67.5607106]
[1741634190614,279.32,118.45,118.39,67.5607106]
[1741634190807,0.06328003,118.41,118.38,0.06026053]
[1741634191112,42.27,118.39,118.32,71.7]
[1741634191308,0.06328003,118.41,118.33,8.4551]
[1741634191508,279.1,118.52,118.34,67.5607106]
[1741634191709,67.5607106,118.47,118.35,67.5607106]
[1741634191912,42.27,118.4,118.33,252.37938533]
[1741634192116,42.27,118.38,118.33,252.37938533]
[1741634192416,42.27,118.38,118.36,130.09435055]
[1741634192610,15.2200932,118.38,118.36,177.26656076]
[1741634192812,42.27,118.37,118.36,177.26656076]
[1741634193016,42.27,118.34,118.33,102.71043233]
[1741634193414,109.8307106,118.34,118.33,102.71043233]
[1741634193619,109.8307106,118.34,118.32,343.92895318]
[1741634193823,109.8307106,118.33,118.32,270.03725318]
[1741634194021,109.8307106,118.33,118.23,71.64]
[1741634194217,172.2779125,118.36,118.2,209.98122438]
[1741634194218,42.27,118.3,118.21,67.5607106]
[1741634194522,42.27,118.28,118.22,71.62]
[1741634194819,42.27,118.26,118.23,274.8801821]
[1741634195011,42.27,118.3,118.24,0.05693767]
[1741634195216,67.5607106,118.39,118.27,67.5607106]
[1741634195413,42.27,118.35,118.29,67.5607106]
[1741634195612,42.27,118.32,118.28,71.62]
[1741634195807,67.5607106,118.35,118.28,71.62]
[1741634196010,42.27,118.29,118.25,131.9991396]
[1741634196212,67.5607106,118.32,118.25,131.9991396]
[1741634196410,0.0215813,118.33,118.3,6.724e-05]
[1741634196622,8.46,118.28,118.25,131.9991396]
[1741634196923,279.04,118.34,118.25,131.9991396]
[1741634197115,67.5607106,118.27,118.25,118.7657396]
[1741634197321,279.0,118.26,118.24,219.99856601]
[1741634197517,279.0,118.28,118.24,219.99856601]
[1741634197720,44.4248237,118.28,118.25,0.06311366]
[1741634198218,8.4608,118.26,118.25,1.366e-05]
[1741634198627,67.5607106,118.25,118.23,51.13116617]
[1741634198920,67.5607106,118.24,118.23,23.56826617]
[1741634199119,67.5607106,118.24,118.18,178.30427967]
[1741634199319,67.5607106,118.21,118.18,178.30427967]
[1741634199519,67.5607106,118.19,118.18,178.36659423]
[1741634199721,67.5607106,118.19,118.16,274.8801821]
[1741634199921,76.0279106,118.17,118.16,274.8801821]
[1741634200316,78.5679106,118.17,118.16,207.3831821]
[1741634200624,70.1007106,118.17,118.06,71.6]
[1741634200828,67.5607106,118.13,118.04,4.3886]
[1741634201123,139.1807106,118.13,118.03,37.12898076]
[1741634201334,71.62,118.13,118.04,67.5607106]
[1741634201632,139.1807106,118.13,118.03,33.09458076]
[1741634202020,0.0619918,118.1,118.07,0.06351734]
[1741634202226,8.4737,118.08,118.07,1.734e-05]
[1741634202418,80.0937,118.08,118.07,1.734e-05]
[1741634202620,8.4786,118.02,117.99,4.3886]
[1741634202821,71.62,118.08,117.97,67.5607106]
[1741634203028,67.5607106,118.07,117.97,67.5607106]
[1741634203227,71.62,118.08,117.97,67.5607106]
[1741634203628,8.4793,118.01,117.97,67.5607106]
[1741634203827,0.06398848,118.04,118.01,0.06442254]
[1741634204025,67.5607106,118.07,117.96,71.66]
[1741634204336,0.06431512,118.04,118.01,0.06228723]
[1741634204622,45.11985357,118.03,118.01,0.06228723]
[1741634204830,279.24,118.02,117.93,67.5607106]
[1741634205224,279.24,118.02,117.93,71.66]
[1741634205428,279.24,118.02,117.97,67.5607106]